[Event "Titled Tuesday Blitz June 14 Late 2022"]
[White "Djokic, Mihailo"]
[Black "Goncalves, Davi Sulzbacher"]
[WhiteFideId "976440"]
[BlackFideId "2154510"]
[WhiteElo "2255"]
[BlackElo "2107"]
[Result "0-1"]
[Round "10"]
[TimeControl "180+1"]
[Date "2022.06.14"]
[WhiteClock "0:00:01"]
[BlackClock "0:00:18"]

1. e4 {[%clk 0:03:00]}  c5 {[%clk 0:02:59]} 2. Nf3 {[%clk 0:03:00]}  Nc6 {[%clk 0:03:00]} 3. d4 {[%clk 0:03:01]}  cxd4 {[%clk 0:03:01]} 4. Nxd4 {[%clk 0:03:02]}  Nf6 {[%clk 0:03:01]} 5. Nc3 {[%clk 0:03:02]}  e5 {[%clk 0:03:02]} 6. Ndb5 {[%clk 0:03:03]}  d6 {[%clk 0:03:03]} 7. Bg5 {[%clk 0:03:03]}  a6 {[%clk 0:03:03]} 8. Bxf6 {[%clk 0:03:04]}  gxf6 {[%clk 0:03:03]} 9. Na3 {[%clk 0:03:05]}  f5 {[%clk 0:03:03]} 10. Nd5 {[%clk 0:03:06]}  Bg7 {[%clk 0:02:55]} 11. c3 {[%clk 0:03:06]}  O-O {[%clk 0:02:52]} 12. exf5 {[%clk 0:03:06]}  Bxf5 {[%clk 0:02:52]} 13. Nc4 {[%clk 0:03:07]}  Be6 {[%clk 0:02:50]} 14. Ncb6 {[%clk 0:03:06]}  Rb8 {[%clk 0:02:48]} 15. Bc4 {[%clk 0:03:05]}  Na5 {[%clk 0:02:43]} 16. Bd3 {[%clk 0:03:01]}  f5 {[%clk 0:02:43]} 17. O-O {[%clk 0:02:59]}  e4 {[%clk 0:02:39]} 18. Bc2 {[%clk 0:02:59]}  Kh8 {[%clk 0:02:24]} 19. f3 {[%clk 0:02:55]}  e3 {[%clk 0:02:08]} 20. f4 {[%clk 0:02:51]}  Bxd5 {[%clk 0:01:51]} 21. Nxd5 {[%clk 0:02:52]}  Nc4 {[%clk 0:01:51]} 22. Qh5 {[%clk 0:02:36]}  Qe8 {[%clk 0:01:27]} 23. Qxe8 {[%clk 0:02:35]}  Rbxe8 {[%clk 0:01:27]} 24. b3 {[%clk 0:02:32]}  e2 {[%clk 0:01:23]} 25. Rfe1 {[%clk 0:02:29]}  Ne3 {[%clk 0:01:23]} 26. Nxe3 {[%clk 0:02:24]}  Rxe3 {[%clk 0:01:24]} 27. Kf2 {[%clk 0:02:18]}  Rfe8 {[%clk 0:01:25]} 28. Bxf5 {[%clk 0:02:03]}  Bxc3 {[%clk 0:01:25]} 29. Rac1 {[%clk 0:02:01]}  Bd4 {[%clk 0:01:22]} 30. Rc4 {[%clk 0:01:42]}  Ba7 {[%clk 0:01:21]} 31. g3 {[%clk 0:01:28]}  Rd3+ {[%clk 0:01:12]} 32. Kg2 {[%clk 0:01:23]}  Rd1 {[%clk 0:01:13]} 33. Rc8 {[%clk 0:00:47]}  Rxc8 {[%clk 0:01:09]} 34. Rxe2 {[%clk 0:00:46]}  Rc7 {[%clk 0:01:00]} 35. Kh3 {[%clk 0:00:42]}  Kg7 {[%clk 0:00:57]} 36. Kg4 {[%clk 0:00:36]}  d5 {[%clk 0:00:57]} 37. h4 {[%clk 0:00:33]}  Rg1 {[%clk 0:00:54]} 38. h5 {[%clk 0:00:25]}  h6 {[%clk 0:00:53]} 39. Bg6 {[%clk 0:00:24]}  Rc3 {[%clk 0:00:50]} 40. Re7+ {[%clk 0:00:22]}  Kf6 {[%clk 0:00:46]} 41. Rf7+ {[%clk 0:00:20]}  Ke6 {[%clk 0:00:46]} 42. f5+ {[%clk 0:00:20]}  Kd6 {[%clk 0:00:42]} 43. Rf6+ {[%clk 0:00:20]}  Ke7 {[%clk 0:00:42]} 44. Re6+ {[%clk 0:00:20]}  Kd7 {[%clk 0:00:41]} 45. Be8+ {[%clk 0:00:19]}  Kd8 {[%clk 0:00:42]} 46. f6 {[%clk 0:00:18]}  Rgxg3+ {[%clk 0:00:41]} 47. Kf5 {[%clk 0:00:18]}  Rgf3+ {[%clk 0:00:40]} 48. Kg6 {[%clk 0:00:18]}  Rg3+ {[%clk 0:00:27]} 49. Kxh6 {[%clk 0:00:18]}  Bc5 {[%clk 0:00:27]} 50. Bg6 {[%clk 0:00:15]}  Bf8+ {[%clk 0:00:25]} 51. Kh7 {[%clk 0:00:16]}  Rc7+ {[%clk 0:00:17]} 52. Kg8 {[%clk 0:00:08]}  Kd7 {[%clk 0:00:17]} 53. Re2 {[%clk 0:00:02]}  Bd6 {[%clk 0:00:16]} 54. f7 {[%clk 0:00:02]}  Rc8+ {[%clk 0:00:16]} 55. Kg7 {[%clk 0:00:02]}  Bf8+ {[%clk 0:00:16]} 56. Kf6 {[%clk 0:00:02]}  Bh6 {[%clk 0:00:16]} 57. Bf5+ {[%clk 0:00:02]}  Kc7 {[%clk 0:00:16]} 58. Bxc8 {[%clk 0:00:02]}  Kxc8 {[%clk 0:00:17]} 59. Re8+ {[%clk 0:00:02]}  Kd7 {[%clk 0:00:17]} 60. f8=Q {[%clk 0:00:02]}  Rf3+ {[%clk 0:00:17]} 61. Kg6 {[%clk 0:00:01]}  Bxf8 {[%clk 0:00:18]} 0-1


[Site "https://www.chess.com"]

[Event "Titled Tuesday Blitz June 14 Late 2022"]
[White "Golubev, Mikhail"]
[Black "Seletsky, Grigory"]
[WhiteFideId "14100983"]
[BlackFideId "14112191"]
[WhiteElo "2374"]
[BlackElo "2492"]
[Result "1-0"]
[Round "10"]
[TimeControl "180+1"]
[Date "2022.06.15"]
[WhiteClock "0:00:17"]
[BlackClock "0:00:11"]

1. e4 {[%clk 0:03:00]}  e6 {[%clk 0:02:59]} 2. d4 {[%clk 0:03:00]}  d5 {[%clk 0:02:58]} 3. Nc3 {[%clk 0:03:00]}  Nc6 {[%clk 0:02:53]} 4. e5 {[%clk 0:02:53]}  Nge7 {[%clk 0:02:52]} 5. Nf3 {[%clk 0:02:50]}  Nf5 {[%clk 0:02:52]} 6. g3 {[%clk 0:02:40]}  b6 {[%clk 0:02:41]} 7. h4 {[%clk 0:02:36]}  h5 {[%clk 0:02:39]} 8. Ne2 {[%clk 0:02:28]}  Ba6 {[%clk 0:02:36]} 9. c3 {[%clk 0:02:27]}  Qd7 {[%clk 0:02:36]} 10. Bh3 {[%clk 0:02:17]}  Bxe2 {[%clk 0:02:30]} 11. Qxe2 {[%clk 0:02:15]}  g6 {[%clk 0:02:30]} 12. b4 {[%clk 0:02:00]}  a6 {[%clk 0:02:24]} 13. a4 {[%clk 0:01:58]}  Nd8 {[%clk 0:02:16]} 14. O-O {[%clk 0:01:57]}  Be7 {[%clk 0:02:12]} 15. Bg2 {[%clk 0:01:47]}  O-O {[%clk 0:02:01]} 16. Bd2 {[%clk 0:01:37]}  Nb7 {[%clk 0:01:51]} 17. c4 {[%clk 0:01:34]}  c6 {[%clk 0:01:43]} 18. b5 {[%clk 0:01:34]}  axb5 {[%clk 0:01:40]} 19. axb5 {[%clk 0:01:33]}  Na5 {[%clk 0:01:33]} 20. bxc6 {[%clk 0:01:21]}  Nxc6 {[%clk 0:01:31]} 21. Rxa8 {[%clk 0:01:15]}  Rxa8 {[%clk 0:01:30]} 22. cxd5 {[%clk 0:01:15]}  Qxd5 {[%clk 0:01:18]} 23. Be3 {[%clk 0:01:03]}  Ra2 {[%clk 0:01:16]} 24. Qd3 {[%clk 0:00:57]}  Nxe3 {[%clk 0:01:10]} 25. Qxe3 {[%clk 0:00:50]}  Ra3 {[%clk 0:00:56]} 26. Qf4 {[%clk 0:00:50]}  Qc4 {[%clk 0:00:46]} 27. Rc1 {[%clk 0:00:45]}  Rc3 {[%clk 0:00:44]} 28. Ra1 {[%clk 0:00:34]}  Kg7 {[%clk 0:00:38]} 29. Ng5 {[%clk 0:00:19]}  Bxg5 {[%clk 0:00:36]} 30. hxg5 {[%clk 0:00:19]}  Na5 {[%clk 0:00:34]} 31. Qf6+ {[%clk 0:00:18]}  Kg8 {[%clk 0:00:34]} 32. Qd8+ {[%clk 0:00:18]}  Kg7 {[%clk 0:00:34]} 33. Qxb6 {[%clk 0:00:18]}  Rc1+ {[%clk 0:00:20]} 34. Rxc1 {[%clk 0:00:18]}  Qxc1+ {[%clk 0:00:20]} 35. Kh2 {[%clk 0:00:18]}  Nb3 {[%clk 0:00:18]} 36. Qxb3 {[%clk 0:00:18]}  Qxg5 {[%clk 0:00:17]} 37. Qe3 {[%clk 0:00:17]}  Qg4 {[%clk 0:00:15]} 38. Qf4 {[%clk 0:00:17]}  Qe2 {[%clk 0:00:15]} 39. Qf6+ {[%clk 0:00:16]}  Kg8 {[%clk 0:00:13]} 40. d5 {[%clk 0:00:17]}  exd5 {[%clk 0:00:11]} 41. Bxd5 {[%clk 0:00:17]} 1-0


[Site "https://www.chess.com"]

[Event "Titled Tuesday Blitz June 14 Late 2022"]
[White "Harsh Suresh"]
[Black "Hoffmann, Asa"]
[WhiteFideId "45018464"]
[BlackFideId "2001470"]
[WhiteElo "2059"]
[BlackElo "2117"]
[Result "1-0"]
[Round "10"]
[TimeControl "180+1"]
[Date "2022.06.14"]
[WhiteClock "0:00:05"]
[BlackClock "0:00:34"]

1. e4 {[%clk 0:03:00]}  d6 {[%clk 0:02:58]} 2. d4 {[%clk 0:02:59]}  Nf6 {[%clk 0:02:52]} 3. Nc3 {[%clk 0:02:59]}  c6 {[%clk 0:02:51]} 4. Nf3 {[%clk 0:02:59]}  Bg4 {[%clk 0:02:47]} 5. Be2 {[%clk 0:02:57]}  e6 {[%clk 0:02:47]} 6. O-O {[%clk 0:02:55]}  d5 {[%clk 0:02:46]} 7. e5 {[%clk 0:02:55]}  Nfd7 {[%clk 0:02:46]} 8. h3 {[%clk 0:02:55]}  Bh5 {[%clk 0:02:46]} 9. Ng5 {[%clk 0:02:47]}  Bg6 {[%clk 0:02:45]} 10. f4 {[%clk 0:02:45]}  Be7 {[%clk 0:02:45]} 11. Be3 {[%clk 0:02:27]}  h6 {[%clk 0:02:41]} 12. Nf3 {[%clk 0:02:24]}  c5 {[%clk 0:02:40]} 13. Qd2 {[%clk 0:02:20]}  Nc6 {[%clk 0:02:39]} 14. Kh1 {[%clk 0:02:18]}  a6 {[%clk 0:02:39]} 15. Rae1 {[%clk 0:02:15]}  Qc7 {[%clk 0:02:31]} 16. dxc5 {[%clk 0:02:07]}  Nxc5 {[%clk 0:02:27]} 17. Nd4 {[%clk 0:02:08]}  Ne4 {[%clk 0:02:21]} 18. Nxe4 {[%clk 0:02:07]}  Bxe4 {[%clk 0:02:21]} 19. c3 {[%clk 0:01:54]}  O-O-O {[%clk 0:02:19]} 20. Bf3 {[%clk 0:01:50]}  Bxf3 {[%clk 0:02:15]} 21. Rxf3 {[%clk 0:01:51]}  Nxd4 {[%clk 0:02:14]} 22. Bxd4 {[%clk 0:01:50]}  g6 {[%clk 0:02:13]} 23. b4 {[%clk 0:01:47]}  Kb8 {[%clk 0:02:13]} 24. a4 {[%clk 0:01:46]}  Rc8 {[%clk 0:02:12]} 25. a5 {[%clk 0:01:44]}  Qc4 {[%clk 0:02:11]} 26. Rd1 {[%clk 0:01:36]}  Rc6 {[%clk 0:02:11]} 27. Bg1 {[%clk 0:01:35]}  Rhc8 {[%clk 0:02:08]} 28. Qf2 {[%clk 0:01:35]}  Kc7 {[%clk 0:02:01]} 29. Qa7 {[%clk 0:01:34]}  Qb5 {[%clk 0:01:56]} 30. Bb6+ {[%clk 0:01:09]}  Rxb6 {[%clk 0:01:51]} 31. Qxb6+ {[%clk 0:01:09]}  Qxb6 {[%clk 0:01:51]} 32. axb6+ {[%clk 0:01:10]}  Kxb6 {[%clk 0:01:51]} 33. g4 {[%clk 0:01:11]}  Rc4 {[%clk 0:01:42]} 34. f5 {[%clk 0:01:11]}  gxf5 {[%clk 0:01:42]} 35. gxf5 {[%clk 0:01:11]}  Bg5 {[%clk 0:01:42]} 36. fxe6 {[%clk 0:01:02]}  fxe6 {[%clk 0:01:42]} 37. Rd4 {[%clk 0:01:01]}  Kb5 {[%clk 0:01:41]} 38. h4 {[%clk 0:00:46]}  Rxd4 {[%clk 0:01:33]} 39. cxd4 {[%clk 0:00:45]}  Bxh4 {[%clk 0:01:29]} 40. Rf6 {[%clk 0:00:46]}  Kxb4 {[%clk 0:01:21]} 41. Rxe6 {[%clk 0:00:46]}  Kc4 {[%clk 0:01:18]} 42. Rxh6 {[%clk 0:00:41]}  Be7 {[%clk 0:01:15]} 43. Rh7 {[%clk 0:00:38]}  Ba3 {[%clk 0:01:13]} 44. Rxb7 {[%clk 0:00:33]}  Kxd4 {[%clk 0:01:13]} 45. e6 {[%clk 0:00:34]}  a5 {[%clk 0:01:05]} 46. Kg2 {[%clk 0:00:32]}  a4 {[%clk 0:00:55]} 47. Kf1 {[%clk 0:00:20]}  Bc5 {[%clk 0:00:50]} 48. e7 {[%clk 0:00:10]}  Bxe7 {[%clk 0:00:49]} 49. Rxe7 {[%clk 0:00:11]}  Kc3 {[%clk 0:00:48]} 50. Rc7+ {[%clk 0:00:11]}  Kb2 {[%clk 0:00:47]} 51. Ke2 {[%clk 0:00:11]}  a3 {[%clk 0:00:47]} 52. Kd2 {[%clk 0:00:11]}  a2 {[%clk 0:00:47]} 53. Rb7+ {[%clk 0:00:12]}  Ka1 {[%clk 0:00:46]} 54. Kc2 {[%clk 0:00:09]}  d4 {[%clk 0:00:44]} 55. Rf7 {[%clk 0:00:03]}  d3+ {[%clk 0:00:44]} 56. Kb3 {[%clk 0:00:03]}  d2 {[%clk 0:00:35]} 57. Rf1+ {[%clk 0:00:04]}  d1=N {[%clk 0:00:34]} 58. Rxd1# {[%clk 0:00:05]} 1-0


[Site "https://www.chess.com"]

[Event "Titled Tuesday Blitz June 14 Late 2022"]
[White "Hnydiuk, Aleksander"]
[Black "D`Arruda, Ricardo D."]
[WhiteFideId "1109057"]
[BlackFideId "100692"]
[WhiteElo "2374"]
[BlackElo "2511"]
[Result "1-0"]
[Round "10"]
[TimeControl "180+1"]
[Date "2022.06.14"]
[WhiteClock "0:01:44"]
[BlackClock "0:00:41"]

1. d4 {[%clk 0:03:00]}  Nf6 {[%clk 0:02:48]} 2. c4 {[%clk 0:03:01]}  e5 {[%clk 0:02:47]} 3. dxe5 {[%clk 0:03:00]}  Ne4 {[%clk 0:02:47]} 4. a3 {[%clk 0:02:55]}  Nc6 {[%clk 0:02:46]} 5. Nf3 {[%clk 0:02:54]}  d6 {[%clk 0:02:46]} 6. exd6 {[%clk 0:02:48]}  Bxd6 {[%clk 0:02:47]} 7. Nbd2 {[%clk 0:02:48]}  Bf5 {[%clk 0:02:45]} 8. Nxe4 {[%clk 0:02:42]}  Bxe4 {[%clk 0:02:46]} 9. g3 {[%clk 0:02:42]}  Qf6 {[%clk 0:02:43]} 10. Bg2 {[%clk 0:02:40]}  O-O-O {[%clk 0:02:35]} 11. Qa4 {[%clk 0:02:40]}  Nd4 {[%clk 0:01:58]} 12. Nxd4 {[%clk 0:02:14]}  Bxg2 {[%clk 0:01:55]} 13. Rg1 {[%clk 0:02:15]}  Be4 {[%clk 0:01:40]} 14. Qxa7 {[%clk 0:02:02]}  Be5 {[%clk 0:01:31]} 15. Qa8+ {[%clk 0:01:53]}  Kd7 {[%clk 0:01:31]} 16. Qa4+ {[%clk 0:01:53]}  c6 {[%clk 0:01:31]} 17. Be3 {[%clk 0:01:52]}  Bxd4 {[%clk 0:01:24]} 18. Bxd4 {[%clk 0:01:50]}  Qe6 {[%clk 0:01:03]} 19. O-O-O {[%clk 0:01:49]}  Ke7 {[%clk 0:00:58]} 20. Qb4+ {[%clk 0:01:48]}  Ke8 {[%clk 0:00:55]} 21. Bxg7 {[%clk 0:01:47]}  Rxd1+ {[%clk 0:00:50]} 22. Rxd1 {[%clk 0:01:48]}  Rg8 {[%clk 0:00:49]} 23. Bc3 {[%clk 0:01:48]}  Bf5 {[%clk 0:00:43]} 24. Qxb7 {[%clk 0:01:45]}  Qe4 {[%clk 0:00:41]} 25. Qb8+ {[%clk 0:01:43]}  Ke7 {[%clk 0:00:41]} 26. Qd6+ {[%clk 0:01:43]}  Ke8 {[%clk 0:00:41]} 27. Qd8# {[%clk 0:01:44]} 1-0


[Site "https://www.chess.com"]

[Event "Titled Tuesday Blitz June 14 Late 2022"]
[White "Injac, Teodora"]
[Black "Girsh, Daniel"]
[WhiteFideId "932400"]
[BlackFideId "30949190"]
[WhiteElo "2278"]
[BlackElo "2507"]
[Result "1/2-1/2"]
[Round "10"]
[TimeControl "180+1"]
[Date "2022.06.15"]
[WhiteClock "0:00:19"]
[BlackClock "0:01:02"]

1. Nf3 {[%clk 0:03:00]}  Nf6 {[%clk 0:02:59]} 2. c4 {[%clk 0:03:00]}  g6 {[%clk 0:03:00]} 3. Nc3 {[%clk 0:02:59]}  Bg7 {[%clk 0:03:01]} 4. e4 {[%clk 0:02:59]}  O-O {[%clk 0:03:02]} 5. d4 {[%clk 0:03:00]}  d6 {[%clk 0:03:02]} 6. Be2 {[%clk 0:03:00]}  e5 {[%clk 0:03:03]} 7. O-O {[%clk 0:02:58]}  Nc6 {[%clk 0:03:02]} 8. Be3 {[%clk 0:02:56]}  Ng4 {[%clk 0:02:55]} 9. Bg5 {[%clk 0:02:56]}  f6 {[%clk 0:02:55]} 10. Bc1 {[%clk 0:02:56]}  Nh6 {[%clk 0:02:51]} 11. h3 {[%clk 0:02:35]}  Kh8 {[%clk 0:02:44]} 12. dxe5 {[%clk 0:02:34]}  fxe5 {[%clk 0:02:41]} 13. Bg5 {[%clk 0:02:31]}  Qd7 {[%clk 0:02:34]} 14. Qd2 {[%clk 0:02:25]}  Nf7 {[%clk 0:02:33]} 15. Be3 {[%clk 0:02:25]}  Nfd8 {[%clk 0:02:31]} 16. Ne1 {[%clk 0:02:13]}  Ne6 {[%clk 0:02:31]} 17. Nc2 {[%clk 0:02:11]}  Nf4 {[%clk 0:02:29]} 18. Bg4 {[%clk 0:02:09]}  Qf7 {[%clk 0:02:28]} 19. Bxc8 {[%clk 0:02:03]}  Raxc8 {[%clk 0:02:29]} 20. Nd5 {[%clk 0:02:02]}  Qe6 {[%clk 0:02:24]} 21. Rad1 {[%clk 0:01:35]}  g5 {[%clk 0:02:16]} 22. b4 {[%clk 0:01:32]}  Ne7 {[%clk 0:02:00]} 23. Nxe7 {[%clk 0:01:27]}  Qxe7 {[%clk 0:02:00]} 24. c5 {[%clk 0:01:21]}  Rf6 {[%clk 0:01:54]} 25. Kh2 {[%clk 0:01:15]}  Rh6 {[%clk 0:01:54]} 26. Bxf4 {[%clk 0:01:11]}  gxf4 {[%clk 0:01:52]} 27. cxd6 {[%clk 0:01:07]}  cxd6 {[%clk 0:01:52]} 28. Ne1 {[%clk 0:01:05]}  Rg6 {[%clk 0:01:31]} 29. Nf3 {[%clk 0:01:05]}  Rg8 {[%clk 0:01:31]} 30. Rg1 {[%clk 0:01:04]}  Bh6 {[%clk 0:01:30]} 31. Rc1 {[%clk 0:00:59]}  Qe6 {[%clk 0:01:28]} 32. Rc7 {[%clk 0:00:53]}  R6g7 {[%clk 0:01:27]} 33. Rxg7 {[%clk 0:00:49]}  Rxg7 {[%clk 0:01:27]} 34. Rc1 {[%clk 0:00:48]}  Rg8 {[%clk 0:01:23]} 35. Rc7 {[%clk 0:00:43]}  Qg6 {[%clk 0:01:20]} 36. Nh4 {[%clk 0:00:18]}  Qg5 {[%clk 0:01:16]} 37. Qxd6 {[%clk 0:00:18]}  Qxh4 {[%clk 0:01:11]} 38. Qxe5+ {[%clk 0:00:18]}  Bg7 {[%clk 0:01:10]} 39. Rxg7 {[%clk 0:00:17]}  Rxg7 {[%clk 0:01:10]} 40. Qe8+ {[%clk 0:00:17]}  Rg8 {[%clk 0:01:07]} 41. Qe5+ {[%clk 0:00:18]}  Rg7 {[%clk 0:01:08]} 42. Qe8+ {[%clk 0:00:18]}  Rg8 {[%clk 0:01:03]} 43. Qe5+ {[%clk 0:00:19]}  Rg7 {[%clk 0:01:02]} 1/2-1/2


[Site "https://www.chess.com"]

[Event "Titled Tuesday Blitz June 14 Late 2022"]
[White "Kovanova, Baira"]
[Black "Romanchuk, Viktor"]
[WhiteFideId "4164083"]
[BlackFideId "14109271"]
[WhiteElo "2190"]
[BlackElo "2242"]
[Result "0-1"]
[Round "10"]
[TimeControl "180+1"]
[Date "2022.06.14"]
[WhiteClock "0:00:53"]
[BlackClock "0:00:36"]

1. e4 {[%clk 0:02:59]}  e6 {[%clk 0:02:59]} 2. d4 {[%clk 0:02:59]}  d5 {[%clk 0:02:59]} 3. e5 {[%clk 0:02:58]}  c5 {[%clk 0:02:58]} 4. c3 {[%clk 0:02:58]}  Nc6 {[%clk 0:02:58]} 5. Nf3 {[%clk 0:02:58]}  Bd7 {[%clk 0:02:59]} 6. Be2 {[%clk 0:02:58]}  f6 {[%clk 0:02:59]} 7. O-O {[%clk 0:02:53]}  Qb6 {[%clk 0:02:58]} 8. dxc5 {[%clk 0:02:48]}  Bxc5 {[%clk 0:02:58]} 9. b4 {[%clk 0:02:48]}  Be7 {[%clk 0:02:57]} 10. Be3 {[%clk 0:02:45]}  Qc7 {[%clk 0:02:57]} 11. exf6 {[%clk 0:02:45]}  Bxf6 {[%clk 0:02:56]} 12. Nd4 {[%clk 0:02:42]}  Nxd4 {[%clk 0:02:47]} 13. Bxd4 {[%clk 0:02:37]}  Bxd4 {[%clk 0:02:47]} 14. Bh5+ {[%clk 0:02:31]}  Ke7 {[%clk 0:02:44]} 15. cxd4 {[%clk 0:02:22]}  Nf6 {[%clk 0:02:42]} 16. Nd2 {[%clk 0:02:22]}  Qc3 {[%clk 0:02:13]} 17. Nb3 {[%clk 0:02:20]}  b6 {[%clk 0:01:55]} 18. a3 {[%clk 0:02:13]}  Ba4 {[%clk 0:01:53]} 19. Rb1 {[%clk 0:02:08]}  Rac8 {[%clk 0:01:40]} 20. Bf3 {[%clk 0:01:44]}  Qc2 {[%clk 0:01:33]} 21. Re1 {[%clk 0:01:22]}  Qxd1 {[%clk 0:01:25]} 22. Bxd1 {[%clk 0:01:22]}  Rc3 {[%clk 0:01:19]} 23. Re3 {[%clk 0:01:13]}  Ne4 {[%clk 0:01:05]} 24. Kf1 {[%clk 0:01:03]}  Rxe3 {[%clk 0:00:57]} 25. fxe3 {[%clk 0:01:02]}  Bxb3 {[%clk 0:00:57]} 26. Rxb3 {[%clk 0:01:00]}  Nd2+ {[%clk 0:00:57]} 27. Ke2 {[%clk 0:01:00]}  Nxb3 {[%clk 0:00:58]} 28. Bxb3 {[%clk 0:01:01]}  Kd6 {[%clk 0:00:54]} 29. Bc2 {[%clk 0:00:59]}  h6 {[%clk 0:00:54]} 30. Bd3 {[%clk 0:00:59]}  a5 {[%clk 0:00:52]} 31. b5 {[%clk 0:00:58]}  Rc8 {[%clk 0:00:50]} 32. Kd2 {[%clk 0:00:58]}  Rc7 {[%clk 0:00:50]} 33. a4 {[%clk 0:00:57]}  Rc8 {[%clk 0:00:49]} 34. h3 {[%clk 0:00:56]}  Rc7 {[%clk 0:00:49]} 35. Bb1 {[%clk 0:00:55]}  Rc4 {[%clk 0:00:45]} 36. Bc2 {[%clk 0:00:55]}  e5 {[%clk 0:00:45]} 37. dxe5+ {[%clk 0:00:54]}  Kxe5 {[%clk 0:00:45]} 38. Bb3 {[%clk 0:00:54]}  Rc8 {[%clk 0:00:40]} 39. Bc2 {[%clk 0:00:53]}  d4 {[%clk 0:00:38]} 40. exd4+ {[%clk 0:00:53]}  Kxd4 {[%clk 0:00:39]} 41. Bb3 {[%clk 0:00:53]}  Rc3 {[%clk 0:00:37]} 42. Bd1 {[%clk 0:00:53]}  Ra3 {[%clk 0:00:36]} 0-1


[Site "https://www.chess.com"]

[Event "Titled Tuesday Blitz June 14 Late 2022"]
[White "Kozin, Yuri"]
[Black "Djabri,Massinas"]
[WhiteFideId "4129920"]
[BlackFideId "7905726"]
[WhiteElo "2548"]
[BlackElo "1941"]
[Result "0-1"]
[Round "10"]
[TimeControl "180+1"]
[Date "2022.06.15"]
[WhiteClock "0:00:03"]
[BlackClock "0:00:41"]

1. e4 {[%clk 0:03:00]}  e5 {[%clk 0:02:59]} 2. Nf3 {[%clk 0:03:01]}  Nc6 {[%clk 0:03:00]} 3. Bb5 {[%clk 0:03:00]}  Nf6 {[%clk 0:03:00]} 4. d3 {[%clk 0:03:00]}  Bc5 {[%clk 0:03:00]} 5. O-O {[%clk 0:03:01]}  Nd4 {[%clk 0:03:01]} 6. Ba4 {[%clk 0:03:01]}  Qe7 {[%clk 0:02:59]} 7. Be3 {[%clk 0:03:00]}  Nxf3+ {[%clk 0:02:51]} 8. Qxf3 {[%clk 0:02:58]}  h6 {[%clk 0:02:51]} 9. Nc3 {[%clk 0:02:49]}  O-O {[%clk 0:02:46]} 10. Qg3 {[%clk 0:02:43]}  Nh5 {[%clk 0:02:43]} 11. Qh3 {[%clk 0:02:32]}  Nf4 {[%clk 0:02:35]} 12. Bxf4 {[%clk 0:02:22]}  exf4 {[%clk 0:02:32]} 13. Nd5 {[%clk 0:02:22]}  Qe5 {[%clk 0:02:15]} 14. Qf3 {[%clk 0:02:17]}  Bd6 {[%clk 0:02:09]} 15. Nc3 {[%clk 0:02:04]}  c6 {[%clk 0:02:07]} 16. Rad1 {[%clk 0:02:03]}  Bc7 {[%clk 0:02:04]} 17. d4 {[%clk 0:02:03]}  Qg5 {[%clk 0:02:05]} 18. d5 {[%clk 0:01:57]}  Be5 {[%clk 0:02:00]} 19. Rd3 {[%clk 0:01:35]}  d6 {[%clk 0:01:50]} 20. h3 {[%clk 0:01:33]}  c5 {[%clk 0:01:45]} 21. Ne2 {[%clk 0:01:23]}  a6 {[%clk 0:01:42]} 22. c4 {[%clk 0:01:21]}  Rb8 {[%clk 0:01:37]} 23. Rb3 {[%clk 0:01:03]}  f5 {[%clk 0:01:36]} 24. exf5 {[%clk 0:00:51]}  Bxf5 {[%clk 0:01:36]} 25. Rb6 {[%clk 0:00:50]}  Qd8 {[%clk 0:01:04]} 26. Rb3 {[%clk 0:00:41]}  g5 {[%clk 0:01:05]} 27. Rc1 {[%clk 0:00:37]}  Qa5 {[%clk 0:01:04]} 28. Ra3 {[%clk 0:00:33]}  Bxb2 {[%clk 0:01:04]} 29. Rcc3 {[%clk 0:00:20]}  Bxa3 {[%clk 0:01:00]} 30. Rxa3 {[%clk 0:00:19]}  b5 {[%clk 0:00:58]} 31. Bc2 {[%clk 0:00:19]}  Qe1+ {[%clk 0:00:57]} 32. Kh2 {[%clk 0:00:17]}  Bxc2 {[%clk 0:00:57]} 33. Rxa6 {[%clk 0:00:16]}  Rbe8 {[%clk 0:00:52]} 34. Ng1 {[%clk 0:00:12]}  Qe5 {[%clk 0:00:47]} 35. Ra7 {[%clk 0:00:11]}  Be4 {[%clk 0:00:47]} 36. Qh5 {[%clk 0:00:10]}  f3+ {[%clk 0:00:48]} 37. g3 {[%clk 0:00:09]}  Qb2 {[%clk 0:00:43]} 38. h4 {[%clk 0:00:03]}  Qxf2+ {[%clk 0:00:43]} 39. Kh3 {[%clk 0:00:04]}  Bf5+ {[%clk 0:00:40]} 40. g4 {[%clk 0:00:03]}  Qg2# {[%clk 0:00:41]} 0-1


[Site "https://www.chess.com"]